bitfinex-derivatives/quotes_BNBF0:USTF0_20250406
["timestamp","ask_amount","ask_price","bid_price","bid_amount"]
[1743936339253,0.58113494,588.17,587.43,0.28627154]
[1743936339450,0.58113494,588.16,587.43,0.28627154]
[1743936339656,0.58113494,588.15,587.43,0.28627154]
[1743936339852,0.58113494,588.14,587.43,0.28627154]
[1743936340056,1.276,588.2,587.43,0.28627154]
[1743936340253,0.58112508,588.19,587.43,0.28627154]
[1743936340452,0.58112508,588.18,587.42,0.34047189]
[1743936340654,0.58112508,588.17,587.43,0.28624967]
[1743936340855,0.58112508,588.16,587.43,0.28624967]
[1743936341055,0.58112508,588.15,587.43,0.28624967]
[1743936341354,0.58112508,588.14,587.43,0.28624967]
[1743936341554,1.276,588.2,587.43,0.28624967]
[1743936341757,0.58113213,588.19,587.43,0.28624967]
[1743936341957,0.58113213,588.18,587.43,0.28624967]
[1743936342253,0.58113213,588.17,587.43,0.28624967]
[1743936342456,0.58113213,588.16,587.43,0.28624967]
[1743936342657,1.276,588.2,587.43,0.28624967]
[1743936342859,0.58115745,588.19,587.43,0.28624967]
[1743936343058,0.58115745,588.18,587.43,1.55544089]
[1743936343359,0.58115745,588.17,587.44,0.28624967]
[1743936343557,0.58115745,588.16,587.44,0.28624967]
[1743936343753,1.276,588.2,587.44,0.28624967]
[1743936343957,0.58117275,588.19,587.44,0.28624967]
[1743936344156,0.58117275,588.18,587.44,0.28624967]
[1743936344355,0.58117275,588.17,587.44,0.28624967]
[1743936344659,0.58117275,588.16,587.44,0.28624967]
[1743936344859,1.276,588.2,587.44,0.28624967]
[1743936344860,0.58117275,588.15,587.44,0.28624967]
[1743936345056,1.276,588.2,587.44,0.28624967]
[1743936345254,0.5811827,588.19,587.44,0.28624967]
[1743936345553,1.276,588.2,587.44,0.28624967]
[1743936345554,0.5811827,588.18,587.56,1.26919122]
[1743936345752,0.5811827,588.17,587.57,0.28624967]
[1743936345956,0.5811827,588.16,587.57,0.28624967]
[1743936346159,1.276,588.2,587.57,0.28624967]
[1743936346359,0.58117982,588.19,587.57,0.28624967]
[1743936346659,0.58119039,588.18,587.57,0.28624967]
[1743936346955,0.58119039,588.17,587.57,0.28624967]
[1743936347158,0.58119039,588.16,587.57,0.28624967]
[1743936347359,0.58119039,588.15,587.57,0.28624967]
[1743936347558,1.276,588.2,587.55,0.28624967]
[1743936347759,0.58117491,588.19,587.58,0.28624967]
[1743936347956,0.58117491,588.18,587.59,0.28624967]
[1743936348159,0.58117491,588.17,587.55,0.28624967]
[1743936348356,0.58117491,588.16,587.56,0.28624967]
[1743936348560,0.58117491,588.15,587.55,0.28624967]
[1743936348855,0.58117491,588.14,587.55,0.28624967]
[1743936349061,0.58117491,588.13,587.44,0.28624967]
[1743936349256,0.58110194,588.12,587.45,0.28624967]
[1743936349560,1.276,588.2,587.46,0.28624967]
[1743936349760,0.58110754,588.19,587.46,0.28624967]
[1743936350056,0.58110754,588.18,587.47,0.28624967]
[1743936350262,0.58110754,588.17,587.48,0.28624967]
[1743936350456,0.58110754,588.16,587.46,0.28624967]
[1743936350661,0.58110754,588.15,587.47,0.28624967]
[1743936350860,1.276,588.2,587.46,0.28624967]
[1743936351063,0.58105933,588.19,587.46,0.28624967]
[1743936351362,0.58105933,588.18,587.46,0.28624967]
[1743936351563,0.58105933,588.17,587.46,0.28624967]
[1743936351762,0.58105933,588.16,587.43,0.28624967]
[1743936351963,0.58105933,588.15,587.43,0.28624967]
[1743936352159,1.276,588.2,587.43,0.28624967]
[1743936352362,0.5809926,588.19,587.43,0.28624967]
[1743936352564,0.5809926,588.18,587.43,0.28624967]
[1743936352764,0.5809926,588.17,587.43,0.28624967]
[1743936353064,0.5809926,588.16,587.43,0.28624967]
[1743936353264,0.5809926,588.15,587.43,0.28624967]
[1743936353464,0.5809926,588.14,587.43,0.28624967]
[1743936353664,0.5809926,588.13,587.43,0.28624967]
[1743936353869,1.276,588.2,587.42,0.34047189]
[1743936354164,0.58090786,588.19,587.43,0.28628876]
[1743936354364,0.58090786,588.18,587.43,0.28628876]
[1743936354564,0.58090786,588.17,587.43,0.28628876]
[1743936354764,0.58090786,588.16,587.43,0.28628876]
[1743936354960,0.58090786,588.15,587.43,0.28628876]
[1743936355166,0.58090786,588.14,587.43,0.28628876]
[1743936355365,0.58090786,588.13,587.43,0.28628876]
[1743936355565,0.58090786,588.12,587.43,0.28628876]
[1743936355867,0.58090786,588.11,587.43,0.28628876]
[1743936356066,0.58090786,588.1,587.43,0.28628876]
[1743936356267,0.29596241,588.19,587.43,0.28628876]
[1743936356471,0.58051675,588.18,587.43,0.28628876]
[1743936356665,0.58051675,588.17,587.43,0.28628876]
[1743936356865,0.58051675,588.16,587.43,0.28628876]
[1743936357065,0.58051675,588.15,587.42,0.34047189]
[1743936357266,0.58051675,588.14,587.43,0.28631336]
[1743936357469,0.58051675,588.13,587.43,0.28631336]
[1743936357671,1.276,588.2,587.43,0.28631336]
[1743936357672,0.58051675,588.12,587.43,0.28631336]
[1743936357870,0.58051675,588.11,587.43,0.28631336]
[1743936358067,0.58051675,588.1,587.43,0.28631336]
[1743936358264,0.58051675,588.09,587.43,0.28631336]
[1743936358466,0.58051675,588.08,587.43,0.28631336]
[1743936358664,0.58051675,588.07,587.43,0.28631336]
[1743936358864,0.29596241,588.19,587.43,0.28631336]
[1743936359065,0.58025286,588.18,587.43,0.28631336]
[1743936359265,0.58023494,588.17,587.43,0.28631336]
[1743936359465,0.58023494,588.16,587.43,0.28631336]
[1743936359668,0.58023494,588.15,587.43,0.28631336]
[1743936359870,0.58023494,588.14,587.43,0.28631336]
[1743936360169,0.58023494,588.13,587.43,0.28631336]
[1743936360367,0.58023494,588.12,587.43,0.28631336]
[1743936360568,0.58023494,588.11,587.43,0.28631336]
[1743936360771,0.58023494,588.1,587.43,0.28631336]
[1743936360972,0.58023494,588.09,587.43,0.28631336]
[1743936361165,0.724,588.2,587.43,0.28631336]
[1743936361370,0.58014714,588.19,587.43,0.28631336]
[1743936361569,0.58014714,588.18,587.43,0.28631336]
[1743936361766,0.58014714,588.17,587.43,0.28631336]
[1743936361969,0.58014714,588.16,587.43,0.28631336]
[1743936362169,0.58014714,588.15,587.43,0.28631336]
[1743936362370,0.58014714,588.14,587.43,0.28631336]
[1743936362671,1.25714714,588.13,587.43,0.28631336]
[1743936362972,0.58014714,588.12,587.43,0.28631336]
[1743936363169,0.58014714,588.11,587.43,0.28631336]
[1743936363473,0.58014714,588.1,587.43,0.28631336]
[1743936363673,0.58014714,588.09,587.43,0.28631336]
[1743936363870,0.677,588.13,587.43,0.28631336]
[1743936364071,0.57989698,588.12,587.43,0.28631336]
[1743936364271,0.57989698,588.11,587.43,0.28631336]
[1743936364470,0.677,588.13,587.43,0.28631336]
[1743936364471,0.57989698,588.1,587.43,0.28631336]
[1743936364670,0.677,588.13,587.43,0.28631336]
[1743936364874,0.5798654,588.12,587.43,0.28631336]
[1743936365075,0.5798654,588.11,587.43,0.28631336]
[1743936365375,0.5798654,588.1,587.43,0.28631336]
[1743936365675,0.5798654,588.09,587.43,0.28631336]
[1743936365873,0.677,588.13,587.43,0.28631336]
[1743936367574,0.803,588.12,587.43,0.28631336]
[1743936371680,0.803,588.12,587.42,0.34047189]
[1743936371980,0.803,588.12,587.43,0.28633487]
[1743936373177,0.5794605,588.11,587.43,0.28633487]
[1743936373383,0.5794605,588.1,587.43,0.28633487]
[1743936373580,0.5794605,588.09,587.42,0.34047189]
[1743936373781,0.5794605,588.08,587.43,0.2863358]
[1743936374081,0.5794605,588.11,587.43,0.2863358]
[1743936374282,0.5794605,588.1,587.43,0.2863358]
[1743936374582,0.5794605,588.09,587.43,0.2863358]
[1743936374787,0.5794605,588.08,587.43,0.2863358]
[1743936374982,0.5794605,588.07,587.43,0.2863358]
[1743936375283,0.5794605,588.11,587.42,0.34047189]
[1743936375482,0.5794605,588.1,587.43,0.28633915]
[1743936375678,0.5794605,588.09,587.43,0.28633915]
[1743936375882,0.5794605,588.08,587.43,0.28633915]
[1743936376082,0.5794605,588.11,587.43,0.28633915]
[1743936376381,1.0989901,588.12,587.43,0.28633915]
[1743936376382,0.5794605,588.1,587.43,0.28633915]
[1743936376582,0.5794605,588.09,587.43,0.28633915]
[1743936376883,0.5794605,588.11,587.42,0.34047189]
[1743936377084,0.5794605,588.1,587.44,0.2863359]
[1743936377283,0.5794605,588.09,587.45,0.2863359]
[1743936377582,0.5794605,588.09,587.42,0.34047189]
[1743936377583,0.5794605,588.11,587.46,0.2863359]
[1743936377787,0.5794605,588.11,587.42,0.34047189]
[1743936377788,0.5794605,588.1,587.43,0.2863359]
[1743936377980,0.5794605,588.09,587.42,0.34047189]
[1743936378182,0.5794605,588.11,587.42,0.34047189]
[1743936378384,0.5794605,588.1,587.42,0.34047189]
[1743936378576,0.5794605,588.09,587.42,0.34047189]
[1743936380385,0.29601276,588.1,587.42,0.34047189]
[1743936380987,0.87547326,588.1,587.42,0.34047189]
[1743936381183,0.29601276,588.1,587.42,0.34047189]
[1743936381390,0.5794605,588.1,587.42,0.34047189]
[1743936381589,0.5794605,588.11,587.42,0.34047189]
[1743936381789,0.87547704,588.1,587.42,0.34047189]
[1743936381990,0.29601654,588.1,587.42,0.34047189]
[1743936382184,0.87547704,588.1,587.42,0.34047189]
[1743936382384,0.29601654,588.1,587.42,0.34047189]
[1743936382589,0.87547704,588.1,587.42,0.34047189]
[1743936382786,0.29601654,588.1,587.42,0.34047189]
[1743936382986,0.87547704,588.1,587.42,0.34047189]
[1743936383289,0.29601654,588.1,587.42,0.34047189]
[1743936384192,1.38225811,588.12,587.43,0.28631154]
[1743936384394,1.3822708,588.12,587.43,0.28631154]
[1743936384793,0.5792708,588.11,587.43,0.28631154]
[1743936385895,0.57942068,588.11,587.43,0.28631154]
[1743936387993,0.803,588.12,587.43,0.28631154]
[1743936392299,0.808,588.11,587.43,0.28631154]
[1743936394093,0.808,588.11,587.47,1.26919122]
[1743936394294,0.808,588.11,587.48,0.28631154]
[1743936396100,0.57992773,588.1,587.48,0.28631154]
[1743936396299,0.57992773,588.09,587.44,0.28631154]
[1743936396499,0.808,588.11,587.49,0.28631154]
[1743936396696,0.58007842,588.1,587.5,0.28631154]
[1743936396895,0.58007842,588.09,587.44,0.28631154]
[1743936397094,0.808,588.11,587.51,0.28631154]
[1743936397296,0.58010764,588.1,587.52,0.28631154]
[1743936397502,0.58010764,588.09,587.44,0.28631154]
[1743936397699,0.808,588.11,587.44,0.28631154]
[1743936397899,0.58008656,588.1,587.44,0.28631154]
[1743936398197,0.58008656,588.09,587.44,0.28631154]
[1743936398400,0.58008656,588.08,587.47,1.26919122]
[1743936398602,0.808,588.11,587.48,0.28631154]
[1743936398801,0.58015128,588.1,587.48,0.28631154]
[1743936399002,0.58015128,588.09,587.48,0.28631154]
[1743936399195,0.58015128,588.08,587.48,0.28631154]
[1743936399399,0.808,588.11,587.48,0.28631154]
[1743936399597,0.58019097,588.1,587.48,0.28631154]
[1743936399896,0.58019097,588.09,587.48,0.28631154]
[1743936400198,0.58019097,588.08,587.47,1.26919122]
[1743936400399,0.58019097,588.08,587.42,0.34047189]
[1743936400400,0.808,588.11,587.48,0.28631136]
[1743936400603,0.58021569,588.1,587.43,0.28631136]
[1743936400802,0.58021569,588.09,587.43,0.28631136]
[1743936401002,0.58021569,588.08,587.43,0.28631136]
[1743936401200,0.58025976,588.07,587.43,0.28631136]
[1743936401405,0.808,588.1,587.43,0.28631136]
[1743936401603,0.58026972,588.09,587.43,0.28631136]
[1743936401804,0.58026972,588.08,587.43,0.28631136]
[1743936402005,0.58026972,588.07,587.42,0.34047189]
[1743936402206,0.808,588.1,587.43,0.28631154]
[1743936402506,0.58031989,588.09,587.43,0.28631154]
[1743936402707,0.58031989,588.08,587.43,0.28631154]
[1743936402905,0.58031989,588.07,587.43,0.28631154]
[1743936403105,0.808,588.1,587.43,0.28631154]
[1743936403907,0.808,588.1,587.42,0.34047189]
[1743936404107,0.808,588.1,587.43,0.28631154]
[1743936407212,1.3883842,588.1,587.43,0.28631154]
[1743936408115,0.808,588.1,587.43,0.28631154]
[1743936408411,0.808,588.1,587.44,1.26919122]
[1743936408609,0.808,588.1,587.45,0.28631154]
[1743936409116,0.58110023,588.09,587.45,0.28631154]
[1743936409316,0.808,588.1,587.45,0.28631154]
[1743936409516,0.58110839,588.09,587.45,0.28631154]
[1743936409818,0.808,588.1,587.45,0.28631154]
[1743936410015,0.58110767,588.09,587.45,0.28631154]
[1743936410211,0.58117679,588.08,587.45,0.28631154]
[1743936410415,0.58117679,588.07,587.45,0.28631154]
[1743936410613,0.58117679,588.06,587.45,0.28631154]
[1743936410816,0.808,588.1,587.45,0.28631154]
[1743936410817,0.58117679,588.05,587.45,0.28631154]
[1743936411016,0.808,588.1,587.43,0.28631154]
[1743936411280,0.58118358,588.09,587.44,0.28631154]
[1743936411615,0.58118358,588.08,587.45,0.28631154]
[1743936411765,0.58118358,588.08,587.42,0.34047189]
[1743936411766,0.58118358,588.07,587.43,0.28631154]
[1743936412016,0.58118358,588.06,587.44,0.28631154]
[1743936412210,0.58118358,588.05,587.43,0.28631154]
[1743936412411,0.58118358,588.04,587.45,0.28631154]
[1743936412711,0.808,588.1,587.46,0.28631154]
[1743936412912,0.58132102,588.09,587.43,0.28631154]
[1743936413112,0.58133223,588.08,587.43,0.28631154]
[1743936413311,0.58133223,588.07,587.43,0.28631154]
[1743936413511,0.58133223,588.06,587.43,0.28631154]
[1743936413718,0.58133223,588.05,587.43,0.28631154]
[1743936413918,0.58133223,588.04,587.42,0.34047189]
[1743936414110,0.808,588.1,587.42,0.34047189]
[1743936414111,0.808,588.1,587.43,0.2863115]
[1743936414312,0.58141057,588.09,587.43,0.2863115]
[1743936414517,0.58141057,588.08,587.43,0.2863115]
[1743936414716,0.58141057,588.07,587.43,0.2863115]
[1743936414916,0.58141057,588.06,587.43,0.2863115]
[1743936415118,0.58141057,588.05,587.43,0.2863115]
[1743936415315,0.58141057,588.04,587.43,0.2863115]
[1743936415515,0.779,588.05,587.42,0.34047189]
[1743936415716,0.5814087,588.04,587.43,0.28631149]
[1743936415913,0.779,588.05,587.43,0.28631149]
[1743936417013,0.779,588.05,587.43,1.55550271]
[1743936417314,0.779,588.05,587.44,0.28631149]
[1743936417916,0.779,588.05,587.43,1.26919122]
[1743936418119,0.779,588.05,587.44,0.28624863]
[1743936419318,0.779,588.05,587.58,1.26919122]
[1743936419517,0.779,588.05,587.59,0.28624863]
[1743936421220,0.779,588.05,587.59,1.26919122]
[1743936421414,0.779,588.05,587.6,0.28622576]
[1743936421618,0.779,588.05,587.59,1.26919122]
[1743936421819,0.779,588.05,587.61,0.28622297]
[1743936422115,0.779,588.05,587.62,0.28622297]
[1743936422320,0.779,588.05,587.59,1.26919122]
[1743936422521,0.779,588.05,587.6,0.28621136]
[1743936423422,0.779,588.05,587.55,1.26919122]
[1743936423625,0.779,588.05,587.56,0.28619113]
[1743936425019,0.779,588.05,587.55,1.26919122]
[1743936425220,0.779,588.05,587.56,0.28619007]
[1743936425617,0.779,588.05,587.61,1.26919122]
[1743936425823,0.779,588.05,587.62,0.28619007]
[1743936428319,0.779,588.05,587.6,0.28619007]
[1743936428524,0.779,588.05,587.63,0.28619007]
[1743936428825,0.779,588.05,587.64,0.28619007]
[1743936429022,0.779,588.05,587.6,0.28619007]
[1743936430023,0.779,588.05,587.56,0.28619007]
[1743936430226,0.779,588.05,587.57,0.28616362]
[1743936430426,0.779,588.05,587.56,0.28616362]
[1743936430623,0.779,588.05,587.57,0.28616362]
[1743936430928,0.779,588.05,587.58,0.28616362]
[1743936431128,0.779,588.05,587.56,0.28616362]
[1743936431325,0.779,588.05,587.57,0.28616362]
[1743936431530,0.779,588.05,587.56,0.28616362]
[1743936431726,0.779,588.05,587.57,0.28616362]
[1743936431927,0.779,588.05,587.56,0.28616362]
[1743936432126,0.869,588.04,587.56,0.28616362]
[1743936432630,0.869,588.04,587.57,0.28616362]
[1743936432827,0.869,588.04,587.56,0.28616362]
[1743936433727,0.869,588.04,587.57,0.34038497]
[1743936433963,0.869,588.04,587.58,0.28616362]
[1743936434163,0.869,588.04,587.59,0.34037338]
[1743936434361,0.869,588.04,587.6,0.28616362]
[1743936434566,0.869,588.04,587.61,0.3403618]
[1743936434763,0.869,588.04,587.62,0.28616362]
[1743936434962,0.869,588.04,587.63,0.34035022]
[1743936435255,0.869,588.04,587.64,0.28616362]
[1743936435458,0.869,588.04,587.65,0.34033863]
[1743936435663,0.869,588.04,587.66,0.28616362]
[1743936435856,0.869,588.04,587.67,0.34032705]
[1743936436170,0.869,588.04,587.68,0.28616362]
[1743936436368,0.869,588.04,587.68,0.62648488]
[1743936436568,0.869,588.04,587.69,0.28616362]
[1743936439265,0.869,588.04,587.7,0.34030968]
[1743936447736,1.648,588.04,587.7,0.34030968]
[1743936449937,1.648,588.04,587.7,1.60583168]
[1743936451846,1.648,588.04,587.77,1.265522]
[1743936452042,0.779,588.04,587.77,1.265522]
[1743936454747,0.779,588.04,587.8,1.265522]
[1743936455842,0.779,588.04,587.74,0.29582278]
[1743936456344,0.779,588.04,587.7,0.34030968]
[1743936456745,0.779,588.04,587.74,0.29583158]
[1743936457349,0.779,588.04,587.81,1.2685592]
[1743936459648,0.779,588.04,587.74,1.2685592]
[1743936460749,0.779,588.04,587.74,1.56438575]
[1743936461345,0.779,588.04,587.74,0.29582655]
[1743936462445,0.779,588.04,587.7,0.34030968]
[1743936462644,0.779,588.04,587.77,1.2707043]
[1743936464752,0.779,588.04,587.74,0.29583158]
[1743936465453,0.779,588.04,587.72,1.2707043]
[1743936466352,0.779,588.04,587.7,0.34030968]
[1743936466754,0.779,588.04,587.73,0.29582907]
[1743936467955,0.779,588.04,587.76,1.2725507]
[1743936469259,0.779,588.04,587.77,0.34026915]
[1743936469958,0.653,588.14,587.77,0.34026915]
[1743936470959,0.653,588.14,587.85,1.2725507]
[1743936473862,0.653,588.14,587.86,1.2725507]
[1743936476262,0.653,588.14,588.03,1.2725507]
[1743936478464,0.653,588.14,587.94,1.2725507]
[1743936478465,0.653,588.14,588.08,1.2725507]
[1743936480866,0.653,588.14,587.77,0.34026915]
[1743936481867,0.653,588.14,587.78,0.29581901]
[1743936483367,0.653,588.14,587.77,0.34026915]
[1743936483867,0.653,588.14,587.78,0.29580769]
[1743936485068,0.653,588.14,587.79,1.2725507]
[1743936486966,0.653,588.14,587.82,1.2725507]
[1743936488765,0.653,588.14,587.93,1.2725507]
[1743936490668,0.653,588.14,587.94,1.2725507]
[1743936493773,0.20872947,588.14,587.94,1.2725507]
[1743936493971,0.876,588.19,587.94,1.2725507]
[1743936494172,0.876,588.19,588.03,1.2725507]
[1743936495975,0.876,588.19,587.98,1.2725507]
[1743936497983,0.876,588.19,587.99,1.2725507]
[1743936498780,0.58179039,588.71,587.99,1.2725507]
[1743936498978,0.58179039,588.7,587.99,1.2725507]
[1743936499184,0.58179039,588.69,587.99,1.2725507]
[1743936499381,0.58179039,588.68,587.99,1.2725507]
[1743936499585,0.58179039,588.67,587.86,1.2725507]
[1743936499778,0.29568705,588.68,587.86,1.2725507]
[1743936499978,0.58179039,588.67,587.86,1.2725507]
[1743936501086,0.58179039,588.66,587.86,1.2725507]
[1743936501281,0.58179039,588.65,587.86,1.2725507]
[1743936501585,0.58179039,588.64,587.86,1.2725507]
[1743936501785,0.58179039,588.63,587.86,1.2725507]
[1743936501986,0.58179039,588.62,587.85,1.2725507]
[1743936502186,0.58179039,588.61,587.85,1.2725507]
[1743936502387,0.58179039,588.6,587.85,1.2725507]
[1743936502586,0.58179039,588.59,587.85,1.2725507]
[1743936502886,0.58191034,588.58,587.85,1.2725507]
[1743936503087,0.58191034,588.57,587.85,1.2725507]
[1743936503287,0.58191034,588.56,587.85,1.2725507]
[1743936503484,0.58191034,588.55,587.81,0.29572599]
[1743936503687,0.58191291,588.54,587.81,0.29572599]
[1743936503889,0.765,588.62,587.81,0.29572599]
[1743936504085,0.58192232,588.61,587.81,0.29572599]
[1743936504384,0.58192232,588.6,587.77,0.34026915]
[1743936504690,0.58192232,588.59,587.84,1.27319059]
[1743936504888,0.58192232,588.58,587.84,1.27319059]
[1743936505090,0.58192232,588.57,587.84,1.27319059]
[1743936505286,0.58192232,588.56,587.84,1.27319059]
[1743936505589,0.58192232,588.55,587.84,1.27319059]
[1743936505786,0.765,588.62,587.84,1.27319059]
[1743936505990,0.58191943,588.61,587.84,1.27319059]
[1743936506192,0.58191943,588.6,587.84,1.27319059]
[1743936506386,0.58191943,588.59,587.84,1.27319059]
[1743936506689,0.58191943,588.58,587.84,1.27319059]
[1743936506891,0.58191943,588.57,587.84,1.27319059]
[1743936507191,0.765,588.62,587.84,1.27319059]
[1743936507486,0.58197283,588.61,587.84,1.27319059]
[1743936507691,0.58197283,588.6,587.84,1.27319059]
[1743936507892,0.58197283,588.59,587.84,1.27319059]
[1743936508192,0.765,588.62,587.84,1.27319059]
[1743936508391,0.58200461,588.61,587.84,1.27319059]
[1743936508591,0.58200461,588.6,587.84,1.27319059]
[1743936508890,0.58200461,588.59,587.84,1.27319059]
[1743936509087,0.765,588.62,587.84,1.27319059]
[1743936509293,0.58199362,588.61,587.84,1.27319059]
[1743936509489,0.58199362,588.6,587.84,1.27319059]
[1743936509695,0.765,588.62,587.99,1.27319059]
[1743936509893,0.58200421,588.61,587.99,1.27319059]
[1743936510092,0.765,588.62,587.99,1.27319059]
[1743936510290,0.58198533,588.61,587.99,1.27319059]
[1743936510594,0.765,588.62,587.99,1.27319059]
[1743936510794,0.58198629,588.61,587.99,1.27319059]
[1743936511091,0.765,588.62,587.99,1.27319059]
[1743936511296,0.58200248,588.61,587.99,1.27319059]
[1743936511497,0.765,588.62,587.99,1.27319059]
[1743936511693,0.58191158,588.61,587.99,1.27319059]
[1743936511895,0.765,588.62,587.99,1.27319059]
[1743936512097,0.58190932,588.61,587.99,1.27319059]
[1743936512297,0.765,588.62,588.06,1.27319059]
[1743936512493,0.58190175,588.61,588.06,1.27319059]
[1743936512697,0.765,588.62,588.06,1.27319059]
[1743936512898,0.581895,588.61,588.06,1.27319059]
[1743936513098,0.765,588.62,588.06,1.27319059]
[1743936513393,0.58188143,588.61,588.06,1.27319059]
[1743936513599,0.58187564,588.6,588.06,1.27319059]
[1743936513799,0.765,588.62,588.06,1.27319059]
[1743936513998,0.58187818,588.61,588.06,1.27319059]
[1743936514295,0.765,588.62,588.06,1.27319059]
[1743936514495,0.58187413,588.61,588.06,1.27319059]
[1743936514699,0.765,588.62,588.06,1.27319059]
[1743936514899,0.58188043,588.61,588.06,1.27319059]
[1743936515198,0.765,588.62,588.06,1.27319059]
[1743936515499,0.765,588.62,587.98,1.27319059]
[1743936515500,0.58187066,588.61,587.98,1.27319059]
[1743936515695,0.765,588.62,587.98,1.27319059]
[1743936515899,0.58187275,588.61,587.98,1.27319059]
[1743936516099,0.765,588.62,587.98,1.27319059]
[1743936516299,0.58187405,588.61,587.98,1.27319059]
[1743936516501,0.58187405,588.6,587.98,1.27319059]
[1743936516696,0.58187405,588.59,587.98,1.27319059]
[1743936516901,0.58187405,588.58,587.98,1.27319059]
[1743936517096,0.58187405,588.57,587.98,1.27319059]
[1743936517299,0.58187405,588.56,587.98,1.27319059]
[1743936517500,0.765,588.62,587.98,1.27319059]
[1743936517697,0.58187903,588.61,587.98,1.27319059]
[1743936517901,0.58187903,588.6,587.98,1.27319059]
[1743936518101,0.58187903,588.59,587.98,1.27319059]
[1743936518304,0.58187903,588.58,587.93,1.27319059]
[1743936518502,0.58187903,588.57,587.93,1.27319059]
[1743936518703,0.58187903,588.56,587.93,1.27319059]
[1743936519003,0.765,588.62,587.93,1.27319059]
[1743936519202,0.58185327,588.61,587.93,1.27319059]
[1743936519403,0.58185327,588.6,587.93,1.27319059]
[1743936519603,0.58185327,588.59,587.93,1.27319059]
[1743936519904,0.58185327,588.58,587.93,1.27319059]
[1743936520103,0.58185327,588.57,587.93,1.27319059]
[1743936520304,0.58185327,588.56,587.93,1.27319059]
[1743936520504,0.58185327,588.55,587.93,1.27319059]
[1743936520800,0.765,588.62,587.93,1.27319059]
[1743936521003,0.58184794,588.61,587.93,1.27319059]
[1743936521203,0.58184794,588.6,587.93,1.27319059]
[1743936521498,0.58184794,588.59,587.93,1.27319059]
[1743936521700,0.58184794,588.58,587.93,1.27319059]
[1743936521899,0.58184794,588.57,587.93,1.27319059]
[1743936522102,0.58184794,588.56,587.93,1.27319059]
[1743936522403,0.58184794,588.55,587.93,1.27319059]
[1743936522603,0.765,588.62,587.93,1.27319059]
[1743936522804,0.58186281,588.61,587.93,1.27319059]
[1743936523001,0.58186281,588.6,587.93,1.27319059]
[1743936523304,0.58186281,588.59,587.93,1.27319059]
[1743936523506,0.765,588.62,587.93,1.27319059]
[1743936523702,0.58188847,588.61,587.93,1.27319059]
[1743936524005,0.58188847,588.6,587.93,1.27319059]
[1743936524206,0.765,588.62,587.93,1.27319059]
[1743936524407,0.58186501,588.61,587.93,1.27319059]
[1743936524605,0.58186501,588.6,587.93,1.27319059]
[1743936524803,0.58186501,588.59,587.93,1.27319059]
[1743936525004,0.29570212,588.77,587.93,1.27319059]
[1743936525204,0.58185452,588.76,587.93,1.27319059]
[1743936525403,0.58185452,588.75,587.93,1.27319059]
[1743936525603,0.58185452,588.74,587.93,1.27319059]
[1743936525805,0.58185452,588.73,587.93,1.27319059]
[1743936526101,0.58185452,588.72,587.93,1.27319059]
[1743936526301,0.752,588.99,587.93,1.27319059]
[1743936526302,0.58185452,588.71,587.93,1.27319059]
[1743936526504,0.58185452,588.7,588.07,1.27319059]
[1743936526803,0.58185452,588.69,588.07,1.27319059]
[1743936527001,0.29566444,588.79,588.07,1.27319059]
[1743936527002,0.58185452,588.68,588.07,1.27319059]
[1743936527203,0.58185452,588.67,588.07,1.27319059]
[1743936527402,0.58185452,588.66,588.07,1.27319059]
[1743936527606,0.58185452,588.65,588.07,1.27319059]
[1743936527806,0.58185452,588.64,588.07,1.27319059]
[1743936528006,0.58185452,588.63,588.07,1.27319059]
[1743936528207,0.58185452,588.62,588.07,1.27319059]
[1743936528402,0.58185452,588.61,588.07,1.27319059]
[1743936528607,0.58185452,588.6,588.07,1.27319059]
[1743936528803,0.58185452,588.59,588.07,1.27319059]
[1743936529003,0.702,588.63,588.07,1.27319059]
[1743936529205,0.5818256,588.62,588.07,1.27319059]
[1743936529405,0.5818256,588.61,588.07,1.27319059]
[1743936529712,0.5818256,588.6,588.07,1.27319059]
[1743936529915,0.5818256,588.59,588.07,1.27319059]
[1743936530113,0.702,588.63,588.07,1.27319059]
[1743936530315,0.58180429,588.62,588.07,1.27319059]
[1743936530613,0.702,588.63,588.05,1.27319059]
[1743936532515,0.702,588.63,587.98,1.27319059]
[1743936534610,0.702,588.63,587.99,1.27319059]
[1743936536314,0.702,588.63,588.0,1.27319059]
[1743936538517,0.58177743,588.62,588.0,1.27319059]
[1743936538713,0.58177743,588.61,588.0,1.27319059]
[1743936538912,0.58177743,588.6,588.0,1.27319059]
[1743936539117,0.58177743,588.59,588.0,1.27319059]
[1743936539317,0.702,588.63,588.0,1.27319059]